bitfinex-derivatives/quotes_ETHF0:USTF0_20260113
["timestamp","ask_amount","ask_price","bid_price","bid_amount"]
[1768280915537,0.84932849,3128.7,3127.6,1.09153891]
[1768280915744,3.42239436,3128.8,3127.6,1.09153891]
[1768280915944,0.84932874,3128.7,3127.6,1.09153891]
[1768280916144,3.42239436,3128.8,3127.6,1.09153891]
[1768280916444,0.84932981,3128.7,3127.6,1.09153891]
[1768280916644,3.42239436,3128.8,3127.6,1.09153891]
[1768280916844,0.84932981,3128.7,3127.6,1.09153891]
[1768280917047,3.42239436,3128.8,3127.6,1.09153891]
[1768280917247,0.84933037,3128.7,3127.6,1.09153891]
[1768280917445,3.42239436,3128.8,3127.6,1.09153891]
[1768280918451,3.42239436,3128.8,3127.4,1.435]
[1768280918743,3.42239436,3128.8,3127.5,2.52853891]
[1768280919043,3.42239436,3128.8,3127.3,1.09633583]
[1768280919246,3.59164108,3128.6,3127.3,2.53333583]
[1768280919448,1.09153891,3129.0,3127.3,2.53333583]
[1768280919449,3.59164108,3128.3,3127.3,0.00479692]
[1768280919941,3.59164108,3128.1,3127.3,0.00479692]
[1768280925453,4.68387065,3128.1,3127.3,0.00479692]
[1768280925953,3.59164108,3128.1,3127.3,0.00479692]
[1768280926253,3.59164108,3128.1,3127.4,1.09222957]
[1768280927854,3.59164108,3128.5,3127.6,1.09222957]
[1768280928154,0.84846483,3128.4,3127.6,1.09222957]
[1768280928454,0.84846483,3128.3,3127.6,1.09222957]
[1768280928756,3.59164108,3128.5,3127.3,0.00479692]
[1768280928960,1.94061959,3128.4,3127.5,1.09222957]
[1768280929254,0.84839002,3128.3,3127.5,1.09222957]
[1768280931757,0.84839002,3128.3,3127.4,1.09222957]
[1768280931957,1.09222957,3128.2,3127.4,1.09222957]
[1768280932649,1.09222957,3128.2,3127.3,0.00479692]
[1768280933050,4.68387065,3128.2,3127.3,0.00479692]
[1768280933548,4.68387065,3128.2,3127.4,1.09222957]
[1768280933752,3.59164108,3128.2,3127.4,1.09222957]
[1768280935658,1.09222957,3128.4,3127.4,1.09222957]
[1768280935962,3.59164108,3128.6,3127.4,1.09222957]
[1768280935963,1.09222957,3128.5,3127.4,1.09222957]
[1768280936164,0.84844384,3128.4,3127.4,1.09222957]
[1768280936468,1.09222957,3128.5,3127.4,1.09222957]
[1768280936663,0.84848518,3128.4,3127.4,1.09222957]
[1768280936961,1.09222957,3128.5,3127.4,1.09222957]
[1768280937158,0.84848529,3128.4,3127.4,1.09222957]
[1768280937358,1.09222957,3128.5,3127.4,1.09222957]
[1768280937559,0.84853507,3128.4,3127.3,0.00479692]
[1768280937756,4.68387065,3128.5,3127.4,1.09222957]
[1768280937957,1.09222957,3128.3,3127.4,1.09222957]
[1768280938358,1.09222957,3128.3,3127.3,0.00479692]
[1768280938558,1.09222957,3128.3,3127.4,1.09222957]
[1768280939650,1.09222957,3128.3,3127.3,0.00479692]
[1768280939855,1.09222957,3128.3,3127.4,1.09222957]
[1768280940464,1.09222957,3128.3,3127.3,0.00479692]
[1768280940763,1.09222957,3128.1,3127.3,0.00479692]
[1768280943972,1.09222957,3128.3,3127.3,0.00479692]
[1768280944563,4.68387065,3128.3,3127.3,0.00479692]
[1768280944862,1.09222957,3128.1,3127.3,0.00479692]
[1768280945061,4.68387065,3128.3,3127.3,0.00479692]
[1768280945261,1.09222957,3128.1,3127.3,0.00479692]
[1768280945463,4.68387065,3128.3,3127.3,0.00479692]
[1768280946266,3.34797774,3128.2,3127.3,0.00479692]
[1768280946463,1.09222957,3128.1,3127.3,0.00479692]
[1768280948269,3.34797774,3128.2,3127.3,0.00479692]
[1768280949068,1.09222957,3128.3,3127.3,0.00479692]
[1768280949069,4.19837479,3128.1,3127.3,0.00479692]
[1768280949271,4.44020731,3128.1,3127.3,0.00479692]
[1768280955068,1.09222957,3127.9,3127.3,0.00479692]
[1768280955370,1.09222957,3127.9,3127.2,0.00366242]
[1768280962279,4.47905174,3127.9,3127.2,0.00366242]
[1768280962571,4.47905174,3127.7,3127.2,0.00366242]
[1768280962772,4.47905174,3127.7,3126.8,1.09222957]
[1768280963779,4.47905174,3127.7,3126.8,0.0035316]
[1768280963978,4.47905174,3127.7,3126.9,1.09222957]
[1768280964882,3.38682217,3127.7,3126.9,1.09222957]
[1768280965072,3.38682217,3127.7,3127.1,1.09222957]
[1768280965272,0.00479692,3128.0,3127.3,1.09222957]
[1768280965773,0.00479692,3128.0,3127.7,1.09222957]
[1768280966169,3.38682217,3128.5,3127.7,1.09222957]
[1768280966365,0.84807843,3128.4,3127.9,1.09222957]
[1768280966569,3.38682217,3128.8,3127.9,1.09222957]
[1768280966570,3.38682217,3128.8,3128.1,1.09222957]
[1768280966778,0.84499801,3128.7,3128.1,1.09222957]
[1768280966979,3.38682217,3128.8,3128.1,1.09222957]
[1768280967579,0.00397375,3129.1,3128.3,1.09222957]
[1768280967878,0.84461586,3129.0,3128.3,1.09222957]
[1768280968176,0.84461586,3128.9,3128.3,1.09222957]
[1768280968377,1.09620332,3129.1,3128.2,1.09222957]
[1768280968567,0.84427389,3129.0,3128.2,1.09222957]
[1768280968768,0.84427389,3128.9,3128.2,1.09222957]
[1768280968969,1.09620332,3129.1,3128.2,1.09222957]
[1768280969178,1.09222957,3128.9,3128.0,1.09222957]
[1768280970171,1.09222957,3128.9,3127.5,3.26487589]
[1768280970476,1.09222957,3128.9,3128.1,1.09222957]
[1768280971877,3.39079592,3129.1,3128.5,1.09222957]
[1768280972181,0.00397375,3129.1,3128.5,1.09222957]
[1768280972383,0.00397375,3129.1,3128.3,1.09222957]
[1768280972577,1.09222957,3129.0,3128.1,1.09222957]
[1768280972977,1.09620332,3129.1,3128.3,1.09222957]
[1768280975780,1.09620332,3129.1,3128.1,1.09222957]
[1768280975980,1.09222957,3128.9,3127.9,1.09222957]
[1768280977285,1.09222957,3128.9,3128.1,1.09222957]
[1768280978173,0.00141191,3129.1,3128.8,1.09222957]
[1768280978485,1.09222957,3129.7,3128.8,1.09222957]
[1768280978685,1.09222957,3129.7,3128.7,1.09222957]
[1768280979179,1.09222957,3129.5,3128.7,1.09222957]
[1768280979377,1.09540505,3129.5,3128.7,1.09222957]
[1768280979686,0.00317548,3129.5,3128.7,1.09222957]
[1768280980384,0.00317548,3129.5,3128.9,1.09222957]
[1768280982286,0.00317548,3129.5,3128.8,1.09222957]
[1768280987398,0.00317548,3129.5,3128.5,1.09113725]
[1768280991093,0.00317548,3129.5,3128.7,1.09113725]
[1768280991890,0.00317548,3129.5,3128.6,1.09113725]
[1768280993497,0.00317548,3129.5,3128.4,4.28014075]
[1768280997404,0.00317548,3129.5,3128.6,1.09113725]
[1768280998901,0.00317548,3129.5,3128.4,3.1890035]
[1768280999101,0.00317548,3129.5,3128.4,1.09113725]
[1768281001806,0.00317548,3129.5,3128.6,1.09113725]
[1768281004210,0.00317548,3129.5,3128.4,1.09113725]
[1768281004406,0.00317548,3129.5,3128.3,5.71514075]
[1768281006815,0.00317548,3129.5,3128.5,1.09113725]
[1768281011219,0.00317548,3129.5,3128.3,4.6240035]
[1768281011517,0.00317548,3129.5,3128.5,1.09113725]
[1768281014317,0.00317548,3129.5,3128.5,4.1365275]
[1768281014517,0.00317548,3129.5,3128.7,1.09113725]
[1768281014818,0.00317548,3129.5,3128.5,4.1365275]
[1768281018622,0.00317548,3129.5,3128.5,3.04539025]
[1768281020916,0.00317548,3129.5,3128.4,1.443]
[1768281024021,0.00317548,3129.5,3128.2,3.04539025]
[1768281024326,0.00317548,3129.5,3128.4,1.444]
[1768281026026,0.00317548,3129.5,3128.4,5.5805275]
[1768281028831,0.00317548,3129.5,3128.4,4.1365275]
[1768281029025,0.00317548,3129.5,3128.4,5.5825275]
[1768281030422,0.00317548,3129.5,3128.4,4.1365275]
[1768281030632,0.00317548,3129.5,3128.4,3.04539025]
[1768281031718,1.09113725,3129.3,3128.1,4.32698384]
[1768281032225,1.09113725,3129.3,3128.1,1.448]
[1768281032932,1.09113725,3129.3,3128.0,2.87898384]
[1768281033125,0.00317548,3129.5,3128.3,1.09113725]
[1768281033332,0.84253151,3129.4,3128.3,1.09113725]
[1768281033523,0.00317548,3129.5,3128.1,1.09113725]
[1768281033723,0.84246093,3129.4,3128.1,1.09113725]
[1768281033929,0.00317548,3129.5,3128.1,1.09113725]
[1768281034131,0.84246092,3129.4,3128.1,1.09113725]
[1768281034426,1.09431273,3129.5,3128.1,1.09113725]
[1768281034624,0.84241508,3129.4,3128.1,1.09113725]
[1768281034930,1.09431273,3129.5,3128.1,1.09113725]
[1768281035131,0.84241508,3129.4,3128.1,1.09113725]
[1768281035433,1.09431273,3129.5,3128.1,1.09113725]
[1768281035624,0.8423787,3129.4,3128.1,1.09113725]
[1768281035823,1.09431273,3129.5,3128.1,1.09113725]
[1768281036026,0.8423787,3129.4,3128.1,1.09113725]
[1768281036224,1.09431273,3129.5,3128.1,1.09113725]
[1768281036432,0.84237853,3129.4,3128.1,1.09113725]
[1768281036635,1.09431273,3129.5,3128.1,1.09113725]
[1768281036832,0.84234827,3129.4,3128.1,1.09113725]
[1768281037031,0.00317548,3129.5,3128.1,1.09113725]
[1768281037227,1.09431273,3129.5,3128.1,1.09113725]
[1768281038431,3.199,3130.6,3129.3,1.09113725]
[1768281038636,3.08636047,3130.4,3128.7,3.09662125]
[1768281038929,8.94995195,3131.2,3128.5,2.87898384]
[1768281038930,3.08636047,3130.8,3130.0,1.09113725]
[1768281039132,0.84210856,3130.7,3130.0,1.09113725]
[1768281039339,3.08636047,3131.4,3130.0,1.09113725]
[1768281039530,0.00304479,3130.7,3130.0,0.00321126]
[1768281040828,3.08636047,3131.3,3130.3,1.09113725]
[1768281041029,0.84147216,3131.2,3130.3,1.09113725]
[1768281041230,3.08636047,3131.3,3130.3,1.09113725]
[1768281041435,1.455,3131.5,3130.3,1.09113725]
[1768281041635,0.84068016,3131.4,3130.3,1.09113725]
[1768281041838,0.00229124,3131.4,3130.3,1.09113725]
[1768281042339,0.00229124,3131.4,3130.0,1.09434851]
[1768281042846,1.09113725,3130.8,3130.0,0.00321126]
[1768281043444,3.08636047,3131.0,3130.0,0.00321126]
[1768281044732,4.17749772,3131.0,3130.0,0.00321126]
[1768281045535,4.17749772,3130.7,3130.0,0.00321126]
[1768281045740,3.08636047,3130.7,3129.2,0.00479692]
[1768281045944,1.09113725,3130.6,3129.2,0.00479692]
[1768281046435,1.09113725,3130.3,3129.2,0.00479692]
[1768281046737,4.17749772,3130.3,3129.2,0.00770376]
[1768281047334,1.09090575,3130.0,3129.2,0.00770376]
[1768281048942,1.09090575,3130.2,3129.3,1.09090575]
[1768281050035,1.09090575,3130.0,3129.2,0.00770376]
[1768281050231,4.17726622,3130.7,3129.8,1.09090575]
[1768281050442,1.09090575,3130.7,3129.8,1.09090575]
[1768281051134,1.09090575,3130.9,3129.8,1.09090575]
[1768281051335,1.09090575,3130.9,3130.0,1.09090575]
[1768281052451,1.454,3131.0,3130.0,1.09090575]
[1768281052638,1.09090575,3130.9,3129.8,1.09090575]
[1768281053340,1.09090575,3130.7,3129.8,1.09090575]
[1768281055152,1.454,3131.0,3129.8,1.09090575]
[1768281055446,1.09090575,3130.9,3130.0,1.09090575]
[1768281056649,1.09090575,3130.9,3129.8,1.09090575]
[1768281056842,1.09090575,3130.7,3129.8,1.09090575]
[1768281057451,1.09090575,3130.3,3129.2,3.10432501]
[1768281057652,1.09090575,3130.1,3129.2,0.00770376]
[1768281058247,1.09090575,3130.3,3129.3,1.09090575]
[1768281060267,1.09090575,3130.3,3129.2,0.00770376]
[1768281060949,1.09090575,3130.1,3129.2,0.00770376]
[1768281062055,1.09090575,3130.1,3129.2,1.09860951]
[1768281062244,1.09090575,3130.3,3129.4,1.09090575]
[1768281062644,4.17726622,3130.7,3129.4,1.09090575]
[1768281062841,1.09090575,3130.3,3129.4,1.09090575]
[1768281065154,1.09090575,3130.3,3129.2,1.09860951]
[1768281065352,4.17726622,3130.7,3129.8,1.09090575]
[1768281065550,4.17726622,3130.7,3129.6,1.09090575]
[1768281065751,1.09090575,3130.5,3129.6,1.09090575]
[1768281066467,1.09090575,3130.5,3129.3,3.08357474]
[1768281066762,1.09090575,3130.5,3129.5,1.09090575]
[1768281067962,1.09090575,3130.5,3129.7,1.09090575]
[1768281069461,1.09090575,3130.5,3129.6,1.09090575]
[1768281070767,3.08636047,3130.7,3129.6,1.09090575]
[1768281071362,2.55090575,3130.8,3129.6,1.09090575]
[1768281071363,2.55090575,3130.8,3129.8,1.09090575]
[1768281071659,0.00229124,3131.4,3130.4,1.09090575]
[1768281071849,1.09090575,3131.2,3130.2,1.09090575]
[1768281072050,1.09090575,3131.0,3130.0,4.17448049]
[1768281074965,1.09090575,3130.8,3129.4,3.04124834]
[1768281075154,1.09090575,3130.4,3129.3,2.87898384]
[1768281075349,1.09090575,3130.2,3129.3,1.09090575]
[1768281075657,3.14182792,3130.7,3129.3,1.09090575]
[1768281075961,1.09090575,3130.4,3129.5,1.09090575]
[1768281077269,1.09090575,3130.2,3129.2,1.09860951]
[1768281081865,1.09090575,3130.2,3129.2,0.00770376]
[1768281081866,1.09090575,3129.8,3129.2,0.00770376]
[1768281082065,1.09090575,3129.8,3128.7,1.09090575]
[1768281082572,1.09090575,3129.8,3128.9,1.09090575]
[1768281082974,1.09090575,3129.8,3128.9,1.09318712]
[1768281084679,1.09090575,3129.8,3128.9,0.00228137]
[1768281084974,1.09090575,3130.0,3129.0,1.09090575]
[1768281087085,0.00479692,3129.8,3129.0,1.09090575]
[1768281090586,0.15986,3131.5,3129.8,3.04124834]
[1768281090889,1.93086647,3131.3,3130.4,1.09090575]
[1768281091087,0.83996072,3131.2,3130.2,1.09090575]
[1768281091283,1.93086647,3131.1,3130.2,1.09090575]
[1768281091582,4.23273367,3130.7,3129.1,2.88378076]
[1768281091784,1.09090575,3130.2,3129.1,0.00479692]
[1768281091978,1.09090575,3130.4,3129.3,1.09090575]
[1768281092184,1.09090575,3130.5,3129.5,1.09090575]
[1768281092384,1.09090575,3130.5,3129.1,0.00479692]
[1768281092385,1.09090575,3130.5,3129.7,1.09090575]
[1768281092687,4.23273367,3130.7,3129.7,1.09090575]
[1768281092886,1.09090575,3130.9,3129.9,1.09090575]
[1768281093187,1.09090575,3130.7,3129.7,1.09090575]
[1768281093990,3.14182792,3131.2,3129.7,1.09090575]
[1768281094188,3.14182792,3131.2,3130.2,1.09090575]
[1768281094189,0.83979179,3131.1,3130.2,1.09090575]
[1768281094489,1.09090575,3131.2,3130.2,1.09090575]
[1768281095084,1.09319699,3131.4,3129.7,3.04124834]
[1768281095286,1.09090575,3131.0,3130.0,1.09090575]
[1768281096685,3.02032866,3131.4,3130.0,1.09090575]
[1768281096886,1.09090575,3131.0,3130.0,1.09090575]
[1768281097393,4.11123441,3131.4,3130.0,1.09090575]
[1768281097394,1.09090575,3130.8,3130.0,1.09090575]
[1768281098490,1.09090575,3130.9,3130.0,1.09090575]
[1768281099288,1.09090575,3130.5,3129.6,1.09090575]
[1768281099490,1.09090575,3130.7,3129.6,1.09090575]
[1768281100393,3.01803742,3131.0,3129.3,2.96498539]
[1768281100394,1.09090575,3130.6,3129.4,1.09090575]
[1768281100593,1.09090575,3130.6,3129.6,1.09090575]
[1768281101389,3.01803742,3131.0,3129.8,1.09090575]
[1768281101592,1.9301649,3130.9,3129.8,1.09090575]
[1768281101894,4.47503742,3131.3,3130.2,1.09090575]
[1768281102196,1.09090575,3131.1,3130.2,1.09090575]
[1768281103283,1.09090575,3130.9,3129.6,4.05589114]
[1768281103487,1.09090575,3130.9,3129.9,1.09090575]
[1768281103694,3.01803742,3131.1,3129.7,1.09090575]
[1768281103695,1.09090575,3130.7,3129.7,1.09090575]
[1768281104095,1.45929124,3131.4,3130.2,1.09090575]
[1768281104397,0.83926851,3131.3,3130.2,1.09090575]
[1768281104587,1.93017426,3131.2,3130.2,1.09090575]
[1768281104787,0.00229124,3131.4,3130.6,1.09090575]
[1768281104993,0.00229124,3131.4,3130.8,1.09090575]
[1768281105495,0.00229124,3131.4,3130.8,1.09570267]
[1768281105997,0.00229124,3131.4,3131.0,1.09090575]
[1768281106188,5.56594317,3131.9,3130.8,1.09570267]
[1768281106388,0.83861017,3131.8,3130.8,1.09570267]
[1768281106596,5.56594317,3131.9,3130.8,1.09570267]
[1768281106897,0.83861285,3131.8,3130.8,1.09570267]
[1768281107096,5.56594317,3131.9,3130.8,1.09570267]
[1768281107296,1.09090575,3131.7,3130.8,1.09570267]
[1768281107498,1.09090575,3131.7,3130.8,0.00479692]
[1768281107998,1.09090575,3131.3,3130.8,0.00479692]
[1768281108193,4.10894317,3131.3,3130.8,0.00479692]
[1768281108401,3.01803742,3131.2,3130.8,0.00479692]
[1768281108696,1.09090575,3131.3,3130.8,0.00479692]
[1768281109402,1.09006678,3131.5,3130.8,0.00479692]
[1768281110195,3.01803742,3131.4,3130.1,1.09006678]
[1768281110500,3.01803742,3131.4,3129.9,1.09006678]
[1768281111896,1.09006678,3130.5,3129.2,2.96498539]
[1768281112199,1.09006678,3130.5,3128.8,4.21504217]
[1768281112400,1.09006678,3130.5,3129.1,1.09006678]
[1768281112702,1.09006678,3130.2,3128.9,1.09234815]
[1768281113402,3.01803742,3130.5,3129.2,1.09006678]
[1768281113702,1.467,3130.4,3129.2,1.09006678]
[1768281114204,3.01803742,3130.5,3129.2,1.09006678]
[1768281114498,1.467,3130.4,3129.2,1.09006678]
[1768281115202,3.01803742,3130.5,3129.2,1.09006678]
[1768281115402,4.48503742,3130.5,3128.9,2.96726676]
[1768281115602,1.467,3130.6,3128.9,2.96726676]
[1768281117902,3.01803742,3130.9,3128.9,2.96726676]
[1768281118105,1.466,3130.7,3128.9,2.96726676]
[1768281118300,0.83678461,3130.6,3128.9,2.96726676]
[1768281118493,1.466,3130.7,3128.9,2.96726676]
[1768281119305,0.83693892,3130.6,3128.9,2.96726676]
[1768281119506,1.466,3130.7,3128.9,2.96726676]
[1768281119706,0.83693894,3130.6,3128.9,2.96726676]
[1768281119907,1.466,3130.7,3128.9,2.96726676]
[1768281120109,0.83693896,3130.6,3128.9,2.96726676]
[1768281120308,1.466,3130.7,3128.9,2.96726676]
[1768281120512,0.83709436,3130.6,3128.9,2.96726676]
[1768281120704,1.466,3130.7,3128.9,2.96726676]
[1768281120904,0.83709451,3130.6,3128.9,2.96726676]
[1768281121106,1.466,3130.7,3128.9,2.96726676]
[1768281121310,0.83708729,3130.6,3128.9,2.96726676]
[1768281121503,3.01803742,3130.9,3128.9,2.96726676]
[1768281121703,3.01803742,3130.9,3129.2,2.96498539]
[1768281122004,3.01803742,3131.3,3129.2,2.96498539]
[1768281122203,3.01803742,3131.3,3128.9,0.00228137]
[1768281122204,0.83697924,3131.2,3129.6,2.96498539]
[1768281122406,1.466,3131.4,3129.6,2.96498539]
[1768281122602,0.83690835,3131.3,3129.6,2.96498539]
[1768281122806,1.466,3131.4,3129.6,2.96498539]
[1768281123110,3.203,3132.3,3129.5,1.66858118]
[1768281123111,3.01803742,3132.2,3130.0,2.96498539]
[1768281123415,1.466,3132.1,3130.0,2.96498539]
[1768281127612,3.01803742,3132.2,3130.0,2.96498539]
[1768281127817,4.48303742,3132.2,3130.0,2.96498539]
[1768281128513,1.465,3132.2,3130.0,2.96498539]
[1768281128718,1.465,3132.3,3130.4,2.89112944]
[1768281128906,3.10562123,3132.2,3130.4,2.89112944]
[1768281134328,4.75353452,3132.6,3130.4,2.89112944]
[1768281139935,3.13384809,3131.8,3130.0,3.30271923]
[1768281148744,0.00411357,3131.8,3130.0,3.30271923]
[1768281149143,3.13384809,3131.8,3130.0,3.30271923]
[1768281151443,3.13384809,3131.8,3130.0,6.18170307]
[1768281152337,3.13384809,3131.8,3130.1,2.87898384]
[1768281152946,3.13384809,3131.8,3130.2,3.14278923]
[1768281155152,3.13384809,3131.8,3130.3,1.443]
[1768281157153,3.13384809,3131.8,3130.3,4.46193077]
[1768281157353,3.13384809,3131.8,3130.7,1.08961874]
[1768281163658,3.13384809,3131.8,3130.3,4.46193077]
[1768281163850,3.13384809,3131.8,3130.7,1.08961874]
[1768281164046,0.00411357,3131.8,3130.7,1.08961874]
[1768281169069,1.08961874,3131.5,3130.2,2.87898384]
[1768281169358,1.08961874,3131.2,3130.0,2.87898384]
[1768281169557,1.08961874,3131.2,3129.9,4.46193077]
[1768281169755,2.89448292,3131.4,3129.9,4.46193077]
[1768281169957,0.84040181,3131.3,3129.9,4.46193077]
[1768281170153,2.89448292,3131.4,3129.9,4.46193077]
[1768281170363,0.83992461,3131.3,3130.1,1.08961874]
[1768281170557,2.89448292,3131.4,3130.1,1.08961874]
[1768281170862,1.09441566,3131.6,3130.1,1.08961874]
[1768281170863,0.83992415,3131.3,3130.2,3.01893077]
[1768281171058,0.00479692,3131.6,3131.0,1.08961874]
[1768281171453,0.00479692,3131.6,3131.2,1.08949859]
[1768281171653,0.00411357,3131.8,3131.2,1.09279479]
[1768281173264,1.09361216,3131.8,3131.2,0.0032962]
[1768281173962,1.08949859,3131.6,3131.0,0.00479692]
[1768281174460,1.08949859,3131.7,3131.0,0.00479692]
[1768281174851,2.89448292,3131.7,3131.0,0.00783076]
[1768281175158,3.98398151,3131.7,3131.0,0.00783076]
[1768281176766,2.89448292,3131.4,3131.0,0.00783076]
[1768281176966,2.89448292,3131.4,3130.5,1.08949859]
[1768281178064,2.89448292,3131.4,3130.5,1.09309229]
[1768281179669,1.09429551,3131.7,3130.7,1.08949859]
[1768281179958,0.00479692,3131.7,3130.9,1.08949859]
[1768281180771,0.00479692,3131.7,3130.5,0.0035937]
[1768281180956,0.00479692,3131.7,3130.9,1.08949859]
[1768281190264,0.00479692,3131.7,3131.1,1.08949859]
[1768281190670,0.00479692,3131.7,3131.3,1.08949859]
[1768281193472,0.00411357,3131.8,3131.3,1.08949859]
[1768281194374,1.08949859,3132.3,3131.3,1.08949859]
[1768281194574,0.8441632,3132.2,3131.3,1.08949859]
[1768281194870,0.8441632,3132.1,3131.3,1.08949859]
[1768281195075,0.8441632,3132.0,3131.2,1.09429551]
[1768281195265,0.00288438,3132.0,3131.2,1.09429551]
[1768281198877,0.00288438,3132.0,3131.2,0.00479692]
[1768281199082,0.00288438,3132.0,3131.2,1.09429551]
[1768281201781,0.00288438,3132.0,3131.4,1.08949859]
[1768281202180,0.00288438,3132.0,3131.6,1.08949859]
[1768281202686,1.08949859,3132.3,3131.4,1.08949859]
[1768281202875,0.84374521,3132.2,3131.4,1.08949859]
[1768281203076,0.84374521,3132.1,3131.4,1.08949859]
[1768281203275,1.08949859,3132.3,3131.4,1.08949859]
[1768281203582,0.00258977,3132.3,3131.8,1.08949859]
[1768281205084,0.00258977,3132.3,3131.4,1.08949859]
[1768281205085,0.00258977,3132.3,3132.0,1.08949859]
[1768281205484,1.456,3133.0,3132.0,1.08949859]
[1768281205685,0.84308605,3132.7,3132.0,1.08949859]
[1768281205887,2.54549859,3133.0,3132.0,1.08949859]
[1768281206087,0.84308466,3132.7,3132.2,1.08949859]
[1768281206287,1.456,3133.0,3132.2,1.08949859]
[1768281206489,0.84269821,3132.9,3132.2,1.08949859]
[1768281206687,1.45929071,3133.0,3132.2,1.08949859]
[1768281206889,0.84269279,3132.9,3132.2,1.08949859]
[1768281207084,0.00329071,3133.0,3132.2,1.08949859]
[1768281207289,0.8423623,3132.9,3132.2,1.08949859]
[1768281207490,0.00329071,3133.0,3132.2,1.08949859]
[1768281207683,0.00329071,3133.0,3132.4,1.08949859]
[1768281208284,1.08949859,3133.4,3132.5,1.08949859]
[1768281208589,1.456,3133.7,3132.7,1.08949859]
[1768281208784,1.93119544,3133.6,3132.5,1.08949859]
[1768281209089,0.84169685,3133.5,3132.5,1.08949859]
[1768281209389,3.24706347,3134.5,3132.8,2.99076715]
[1768281209588,3.24706347,3134.5,3133.3,1.08949859]
[1768281209589,1.08949859,3134.2,3133.3,1.08949859]
[1768281209783,1.08949859,3134.0,3133.0,1.08949859]
[1768281209988,1.08949859,3133.8,3132.8,4.08026574]
[1768281210184,4.54536347,3134.4,3132.8,4.08026574]
[1768281210392,0.84024811,3134.3,3133.0,1.08949859]
[1768281210589,1.08949859,3133.9,3133.0,1.08949859]
[1768281211187,0.00403037,3134.4,3133.2,1.08949859]
[1768281211490,0.00403037,3134.4,3133.0,2.99076715]
[1768281211491,1.08949859,3134.0,3133.0,4.08026574]
[1768281212390,1.08949859,3133.8,3132.8,1.08949859]
[1768281213184,1.08949859,3133.8,3132.9,1.08949859]
[1768281213689,1.08949859,3133.6,3132.7,0.0047892]
[1768281214191,0.0047892,3133.7,3132.7,0.0047892]
[1768281214590,1.09428779,3133.7,3132.7,0.0047892]
[1768281214788,1.09428779,3133.7,3132.8,1.08949859]
[1768281216084,1.09428779,3133.7,3133.0,1.0]
[1768281217091,0.0047892,3133.7,3133.0,1.0]
[1768281217292,0.0047892,3133.7,3133.0,2.08949859]
[1768281220298,0.0047892,3133.7,3133.2,4.07768138]
[1768281220592,0.00403037,3134.4,3133.3,2.98818279]
[1768281220793,0.00403037,3134.4,3133.6,1.08949859]
[1768281221000,0.00403037,3134.4,3133.2,1.08949859]
[1768281221001,3.08357051,3135.6,3134.3,2.17899718]
[1768281221294,3.08357051,3135.6,3134.4,1.08949859]
[1768281221499,1.08949859,3135.3,3134.4,1.08949859]
[1768281221796,1.08949859,3135.2,3133.9,2.98818279]
[1768281221992,0.00245694,3135.2,3133.9,2.98818279]
[1768281222297,1e-08,3135.2,3134.5,0.0047892]
[1768281222500,1e-08,3135.2,3134.6,1.08949859]
[1768281222991,1e-08,3135.2,3134.5,0.0047892]
[1768281222992,1.08949859,3135.8,3134.8,1.08949859]
[1768281223198,1.08949859,3135.2,3134.5,0.0047892]
[1768281223589,1.08949859,3135.2,3133.7,2.98818279]
[1768281223789,1.08949859,3135.2,3134.2,1.08949859]
[1768281223990,1.09278029,3135.2,3134.2,1.0928869]
[1768281224186,1.09278029,3135.2,3134.2,0.00338831]
[1768281224187,1.08949859,3135.0,3134.2,0.00338831]
[1768281225101,1.08949859,3135.0,3134.3,0.0047892]
[1768281225296,0.0032817,3135.2,3134.3,0.0047892]
[1768281225499,1.09278029,3135.2,3134.3,0.0047892]
[1768281226293,1.08949859,3135.0,3134.3,0.0047892]
[1768281226495,4.1730691,3135.0,3133.6,1.08949859]
[1768281226695,3.08357051,3135.0,3133.6,1.08949859]
[1768281226897,0.0032817,3135.2,3133.6,2.98818279]
[1768281227095,0.0032817,3135.2,3134.2,1.08949859]
[1768281227290,1.09278029,3135.2,3134.2,1.08949859]
[1768281227500,1.08949859,3135.0,3134.2,1.09196808]
[1768281227694,1.08949859,3134.6,3134.2,0.00246949]
[1768281227899,1.08949859,3134.4,3133.2,2.98818279]
[1768281228094,1.08949859,3134.4,3133.4,1.08949859]
[1768281228806,1.08949859,3134.4,3133.4,1.09302517]
[1768281229002,1.08949859,3134.2,3133.4,0.00352658]
[1768281229498,3.08357051,3134.7,3133.4,1.09302517]
[1768281229702,1.08949859,3134.4,3133.4,1.09302517]
[1768281229904,1.08949859,3134.4,3133.6,1.08949859]
[1768281230104,1.08949859,3134.8,3133.8,1.08949859]
[1768281231105,1.08949859,3134.7,3133.4,0.00352658]
[1768281231406,1.08769676,3135.0,3133.4,0.00352658]
[1768281231706,1.08769676,3135.0,3133.5,1.08769676]
[1768281231911,1.08769676,3134.9,3133.5,1.08769676]
[1768281232206,1.08769676,3135.0,3133.5,1.08769676]
[1768281232808,4.17126727,3135.0,3133.4,0.00352658]
[1768281233199,1.08769676,3134.7,3133.4,0.00352658]
[1768281234006,3.08357051,3134.9,3133.4,0.00352658]
[1768281234202,3.08357051,3134.9,3133.6,1.08769676]
[1768281234601,3.08357051,3134.9,3133.9,1.0]
[1768281234806,0.0032817,3135.2,3133.9,1.0]
[1768281234807,1.08769676,3135.1,3133.9,1.0]
[1768281235009,0.83774582,3135.0,3133.9,1.0]
[1768281235208,1.08769676,3135.1,3133.9,1.0]
[1768281235405,0.83826668,3135.0,3133.9,1.0]
[1768281235709,1.08769676,3135.1,3133.9,1.0]
[1768281235902,0.83826683,3135.0,3133.9,1.0]
[1768281236107,1.08769676,3135.1,3133.9,1.0]
[1768281236108,0.83876034,3134.9,3133.9,1.0]
[1768281236404,4.17126727,3135.1,3133.9,1.0]
[1768281236609,0.83876433,3135.0,3133.9,1.0]
[1768281236811,1.08769676,3134.8,3133.9,1.0]
[1768281239407,0.84003308,3134.7,3133.9,1.0]
[1768281239614,1.08769676,3134.8,3133.9,1.0]
[1768281239814,0.84003323,3134.7,3133.9,1.0]
[1768281240115,1.08769676,3134.8,3133.9,1.0]
[1768281240412,0.84007429,3134.7,3133.9,1.0]
[1768281240613,1.08769676,3134.8,3133.9,1.0]
[1768281240810,1.08769676,3134.5,3133.4,0.00352658]
[1768281241008,1.08769676,3134.2,3133.4,0.00352658]
[1768281243517,4.17126727,3134.2,3133.4,0.00352658]
[1768281243716,3.08357051,3134.2,3133.4,0.00352658]
[1768281245214,1.456,3134.5,3133.4,0.00352658]
[1768281245414,0.84206308,3134.4,3133.4,0.00352658]
[1768281245615,0.84206308,3134.3,3133.4,0.00352658]
[1768281245812,2.54369676,3134.5,3133.4,0.00352658]
[1768281245813,0.84206308,3134.2,3133.4,0.00352658]
[1768281246116,2.54369676,3134.5,3133.4,0.00352658]
[1768281246316,0.84211651,3134.4,3133.4,0.00352658]
[1768281246520,0.84211651,3134.3,3133.4,0.00352658]
[1768281246715,0.84211651,3134.2,3133.4,0.00352658]
[1768281246916,2.82124341,3134.4,3133.4,0.00352658]
[1768281247110,0.84211738,3134.3,3133.4,0.00352658]